fUSD/lending_fUSD_20260112
["ID","MTS","AMOUNT","RATE_DAILY","PERIOD"]
[401408063,1768188651489,-151.0,0.0001773,2]
[401408064,1768188651498,-200.139122,0.0001773,2]
[401408065,1768188651507,-182.10784,0.0001773,2]
[401408066,1768188651516,-1755.980439,0.0001773,2]
[401408067,1768188651527,-151.0,0.0001773,2]
[401408068,1768188651538,-200.139122,0.0001773,2]
[401408069,1768188651548,-182.10784,0.0001773,2]
[401408070,1768188651559,-1755.980439,0.0001773,2]
[401408071,1768188651569,-310.766084,0.0001773,2]
[401408072,1768188651581,-182.10784,0.0001773,2]
[401408073,1768188651592,-500.0,0.00017736,2]
[401408074,1768188651602,-500.0,0.00017736,2]
[401408075,1768188651613,-500.0,0.00017736,2]
[401408076,1768188651623,-500.0,0.00017736,2]
[401408077,1768188651634,-500.0,0.00017736,2]
[401408078,1768188651644,-150.0,0.00017743,2]
[401408079,1768188651655,-150.0,0.00017743,2]
[401408080,1768188651664,-350.68764993,0.00017745,2]
[401408081,1768188651675,-350.68764993,0.00017764,2]
[401408082,1768188651685,-1808.17008669,0.00017765,2]
[401408083,1768188651695,-239.44755982,0.00017765,3]
[401408084,1768188651704,-150.0,0.00017775,2]
[401408085,1768188651715,-150.0,0.00017775,2]
[401408086,1768188651726,-350.68764993,0.00017782,2]
[401408087,1768188651735,-2987.79350316,0.00017784,2]
[401408088,1768188651744,-1101.0,0.00017792,2]
[401408089,1768188651757,-1000.0,0.000178,2]
[401408090,1768188651768,-350.68764993,0.000178,2]
[401408091,1768188651778,-14458.04141764,0.000178,2]
[401408092,1768188651789,-3500.0,0.000178,6]
[401408093,1768188651801,-156.587,0.00017807,2]
[401408094,1768188651812,-1073.4,0.00017808,2]
[401408095,1768188651823,-150.67981664,0.00017808,2]
[401408096,1768188651835,-300.0,0.00017808,3]
[401408097,1768188651845,-350.68764993,0.00017818,2]
[401408098,1768188651855,-150.0,0.0001782,2]
[401408099,1768188651864,-2109.39679,0.0001782,2]
[401408100,1768188651873,-2109.39679,0.0001782,2]
[401408101,1768188651883,-500.0,0.00017829,2]
[401408102,1768188651894,-25000.0,0.0001783,3]
[401408103,1768188651904,-2109.39679,0.0001783,2]
[401408104,1768188651914,-6811.0,0.00017834,2]
[401408105,1768188651925,-350.68764993,0.00017836,2]
[401408106,1768188651937,-25000.0,0.00017838,3]
[401408107,1768188651946,-25000.0,0.00017847,3]
[401408108,1768188651955,-150.0,0.0001785,2]
[401408109,1768188651965,-350.68764993,0.00017855,2]
[401408110,1768188651974,-200.0,0.00017855,2]
[401408111,1768188651983,-500.0,0.00017855,2]
[401408112,1768188651992,-25000.0,0.00017856,3]
[401408113,1768188652002,-200.0,0.00017856,2]
[401408114,1768188652011,-2109.39679,0.0001786,2]
[401408115,1768188652021,-150.0,0.00017862,2]
[401408116,1768188652030,-25000.0,0.00017865,3]
[401408117,1768188652040,-617.40005154,0.00017869,2]
[401408118,1768188652050,-150.0,0.00017871,2]
[401408119,1768188652062,-150.0,0.00017871,2]
[401408120,1768188652073,-350.68764993,0.00017873,2]
[401408121,1768188652086,-25000.0,0.00017874,3]
[401408122,1768188652098,-2109.39679,0.0001788,2]
[401408123,1768188652109,-25000.0,0.00017882,3]
[401408124,1768188652120,-1777.0,0.00017887,2]
[401408125,1768188652132,-500.0,0.0001789,2]
[401408126,1768188652143,-350.68764993,0.00017891,2]
[401408127,1768188652155,-25000.0,0.00017891,3]
[401408128,1768188652166,-4831.1649,0.000179,2]
[401408129,1768188652177,-25000.0,0.000179,3]
[401408130,1768188652191,-8365.1305,0.000179,2]
[401408131,1768188652204,-1054.4366,0.000179,2]
[401408132,1768188652215,-151.0,0.000179,2]
[401408133,1768188652228,-151.0,0.000179,2]
[401408134,1768188652240,-151.0,0.000179,2]
[401408135,1768188652252,-151.0,0.000179,2]
[401408136,1768188652263,-151.0,0.000179,2]
[401408137,1768188652276,-151.0,0.000179,2]
[401408138,1768188652289,-151.0,0.000179,2]
[401408139,1768188652298,-151.0,0.000179,2]
[401408140,1768188652307,-151.0,0.000179,2]
[401408141,1768188652317,-1286.81811,0.000179,2]
[401408142,1768188652326,-1286.81811,0.000179,2]
[401408143,1768188652336,-177.383743,0.000179,2]
[401408144,1768188652346,-1286.81811,0.000179,2]
[401408145,1768188652355,-151.0,0.000179,2]
[401408146,1768188652364,-1286.81811,0.000179,2]
[401408147,1768188652374,-151.0,0.000179,2]
[401408148,1768188652383,-151.0,0.000179,2]
[401408149,1768188652393,-151.0,0.000179,2]
[401408150,1768188652403,-151.0,0.000179,2]
[401408151,1768188652413,-151.0,0.000179,2]
[401408152,1768188652422,-151.0,0.000179,2]
[401408153,1768188652432,-151.0,0.000179,2]
[401408154,1768188652442,-151.0,0.000179,2]
[401408155,1768188652451,-151.0,0.000179,2]
[401408156,1768188652460,-151.0,0.000179,2]
[401408157,1768188652469,-151.0,0.000179,2]
[401408158,1768188652479,-14795.09900655,0.000179,3]
[401408159,1768188652489,-151.0,0.000179,2]
[401408160,1768188652498,-170.178937,0.000179,2]
[401408161,1768188652507,-170.178937,0.000179,2]
[401408162,1768188652517,-170.178937,0.000179,2]
[401408163,1768188652527,-151.0,0.000179,2]
[401408164,1768188652536,-170.178937,0.000179,2]
[401408165,1768188652546,-363.473571,0.000179,2]
[401408166,1768188652555,-151.0,0.000179,2]
[401408167,1768188652564,-151.0,0.000179,2]
[401408168,1768188652573,-363.473571,0.000179,2]
[401408169,1768188652583,-151.0,0.000179,2]
[401408170,1768188652592,-363.473571,0.000179,2]
[401408171,1768188652601,-363.473571,0.000179,2]
[401408172,1768188652611,-151.0,0.000179,2]
[401408173,1768188652620,-151.0,0.000179,2]
[401408174,1768188652629,-151.0,0.000179,2]
[401408175,1768188652639,-325.126375,0.000179,2]
[401408176,1768188652648,-325.126375,0.000179,2]
[401408177,1768188652657,-325.126375,0.000179,2]
[401408178,1768188652667,-325.126375,0.000179,2]
[401408179,1768188652676,-151.0,0.000179,2]
[401408180,1768188652685,-151.0,0.000179,2]
[401408181,1768188652695,-151.0,0.000179,2]
[401408182,1768188652704,-151.0,0.000179,2]
[401408183,1768188652713,-30100.0,0.000179,2]
[401408184,1768188652723,-151.0,0.000179,2]
[401408185,1768188652732,-151.0,0.000179,2]
[401408186,1768188652741,-871.95212,0.000179,2]
[401408187,1768188652751,-347.602439,0.000179,2]
[401408188,1768188652763,-871.95212,0.000179,2]
[401408189,1768188652772,-347.602439,0.000179,2]
[401408190,1768188652782,-871.95212,0.000179,2]
[401408191,1768188652791,-151.0,0.000179,2]
[401408192,1768188652802,-347.602439,0.000179,2]
[401408193,1768188652811,-871.95212,0.000179,2]
[401408194,1768188652821,-347.602439,0.000179,2]
[401408195,1768188652833,-151.0,0.000179,2]
[401408196,1768188652842,-244.502146,0.000179,2]
[401408197,1768188652851,-244.502146,0.000179,2]
[401408198,1768188652861,-244.502146,0.000179,2]
[401408199,1768188652870,-244.502146,0.000179,2]
[401408200,1768188652879,-736.421096,0.000179,2]
[401408201,1768188652889,-736.421096,0.000179,2]
[401408202,1768188652898,-736.421096,0.000179,2]
[401408203,1768188652907,-736.421096,0.000179,2]
[401408204,1768188652916,-151.0,0.000179,2]
[401408205,1768188652926,-151.0,0.000179,2]
[401408206,1768188652935,-151.0,0.000179,2]
[401408207,1768188652945,-151.0,0.000179,2]
[401408208,1768188652955,-151.0,0.000179,2]
[401408209,1768188652964,-151.0,0.000179,2]
[401408210,1768188652974,-151.0,0.000179,2]
[401408211,1768188652983,-151.0,0.000179,2]
[401408212,1768188652992,-199.646617,0.000179,2]
[401408213,1768188653002,-151.0,0.000179,2]
[401408214,1768188653011,-199.646617,0.000179,2]
[401408215,1768188653022,-199.646617,0.000179,2]
[401408216,1768188653032,-151.0,0.000179,2]
[401408217,1768188653042,-199.646617,0.000179,2]
[401408218,1768188653052,-151.0,0.000179,2]
[401408219,1768188653062,-151.0,0.000179,2]
[401408220,1768188653071,-151.0,0.000179,2]
[401408221,1768188653081,-151.0,0.000179,2]
[401408222,1768188653092,-151.0,0.000179,2]
[401408223,1768188653101,-473.824202,0.000179,2]
[401408224,1768188653111,-151.0,0.000179,2]
[401408225,1768188653121,-151.0,0.000179,2]
[401408226,1768188653130,-381.65406,0.000179,2]
[401408227,1768188653140,-151.0,0.000179,2]
[401408228,1768188653149,-151.0,0.000179,2]
[401408229,1768188653159,-473.824202,0.000179,2]
[401408230,1768188653168,-381.65406,0.000179,2]
[401408231,1768188653177,-151.0,0.000179,2]
[401408232,1768188653187,-473.824202,0.000179,2]
[401408233,1768188653196,-381.65406,0.000179,2]
[401408234,1768188653207,-473.824202,0.000179,2]
[401408235,1768188653217,-381.65406,0.000179,2]
[401408236,1768188653228,-151.0,0.000179,2]
[401408237,1768188653237,-151.0,0.000179,2]
[401408238,1768188653247,-151.0,0.000179,2]
[401408239,1768188653257,-151.0,0.000179,2]
[401408240,1768188653267,-151.0,0.000179,2]
[401408241,1768188653277,-171.582681,0.000179,2]
[401408242,1768188653287,-151.0,0.000179,2]
[401408243,1768188653297,-151.0,0.000179,2]
[401408244,1768188653306,-151.0,0.000179,2]
[401408245,1768188653316,-151.0,0.000179,2]
[401408246,1768188653325,-350.223287,0.000179,2]
[401408247,1768188653335,-169.265713,0.000179,2]
[401408248,1768188653345,-350.223287,0.000179,2]
[401408249,1768188653354,-151.0,0.000179,2]
[401408250,1768188653364,-151.0,0.000179,2]
[401408251,1768188653374,-151.0,0.000179,2]
[401408252,1768188653384,-350.223287,0.000179,2]
[401408253,1768188653395,-151.0,0.000179,2]
[401408254,1768188653405,-350.223287,0.000179,2]
[401408255,1768188653415,-172.73046,0.000179,2]
[401408256,1768188653424,-154.393056,0.000179,2]
[401408257,1768188653434,-874.374949,0.000179,2]
[401408258,1768188653444,-874.374949,0.000179,2]
[401408259,1768188653454,-151.932842,0.000179,2]
[401408260,1768188653465,-874.374949,0.000179,2]
[401408261,1768188653475,-151.0,0.000179,2]
[401408262,1768188653486,-151.0,0.000179,2]
[401408263,1768188653496,-152.18826,0.000179,2]
[401408264,1768188653597,-874.374949,0.000179,2]
[401408265,1768188653643,-151.0,0.000179,2]
[401408266,1768188653653,-151.0,0.000179,2]
[401408267,1768188653663,-151.0,0.000179,2]
[401408268,1768188653672,-151.0,0.000179,2]
[401408269,1768188653681,-151.0,0.000179,2]
[401408270,1768188653691,-151.0,0.000179,2]
[401408271,1768188653700,-151.0,0.000179,2]
[401408272,1768188653710,-151.0,0.000179,2]
[401408273,1768188653720,-487.3351,0.000179,2]
[401408274,1768188653730,-151.0,0.000179,2]
[401408275,1768188653740,-487.3351,0.000179,2]
[401408276,1768188653750,-487.3351,0.000179,2]
[401408277,1768188653765,-487.3351,0.000179,2]
[401408278,1768188653775,-151.0,0.000179,2]
[401408279,1768188653784,-151.0,0.000179,2]
[401408280,1768188653796,-384.478135,0.000179,2]
[401408281,1768188653806,-151.0,0.000179,2]
[401408282,1768188653816,-782.94943236,0.000179,2]
[401408283,1768188653826,-384.478135,0.000179,2]
[401408284,1768188653837,-151.0,0.000179,2]
[401408285,1768188653847,-384.478135,0.000179,2]
[401408286,1768188653857,-317.89217191,0.000179,2]
[401408287,1768188653867,-384.478135,0.000179,2]
[401408288,1768188653876,-268.270545,0.000179,2]
[401408289,1768188653886,-268.270545,0.000179,2]
[401408290,1768188653896,-268.270545,0.000179,2]
[401408291,1768188653906,-268.270545,0.000179,2]
[401408292,1768188653916,-506.307155,0.000179,2]
[401408293,1768188653926,-506.307155,0.000179,2]
[401408294,1768188653936,-506.307155,0.000179,2]
[401408295,1768188653946,-506.307155,0.000179,2]
[401408296,1768188653956,-3538.0,0.000179,6]
[401408297,1768188653966,-186.17644642,0.000179,3]
[401408298,1768188653976,-1223.71226319,0.000179,2]
[401408299,1768188653986,-1223.71226317,0.000179,2]
[401408300,1768188653995,-1223.71226317,0.000179,2]
[401408301,1768188654006,-1808.17008669,0.000179,2]
[401408302,1768188654016,-1223.71226317,0.000179,2]
[401408303,1768188654026,-1223.71226317,0.000179,2]
[401408304,1768188654035,-1223.71226317,0.000179,2]
[401408305,1768188654045,-1223.71226317,0.000179,2]
[401408306,1768188654055,-1223.71226317,0.000179,2]
[401408307,1768188654065,-11952.36354964,0.000179,2]
[401408308,1768188654075,-1223.71226317,0.000179,2]
[401408309,1768188654085,-1223.71226317,0.000179,2]
[401408310,1768188654096,-1223.71226317,0.000179,2]
[401408311,1768188654105,-1223.71226317,0.000179,2]
[401408312,1768188654115,-1223.71226317,0.000179,2]
[401408313,1768188654125,-1223.71226317,0.000179,2]
[401408314,1768188654135,-1223.71226317,0.000179,2]
[401408315,1768188654145,-239.44755982,0.000179,3]
[401408316,1768188654154,-1223.71226317,0.000179,2]
[401408317,1768188654164,-1223.71226317,0.000179,2]
[401408318,1768188654174,-1223.71226317,0.000179,2]
[401408319,1768188654183,-2987.79350316,0.000179,2]
[401408320,1768188654193,-1223.71226317,0.000179,2]
[401408321,1768188654203,-1223.71226317,0.000179,2]
[401408322,1768188654212,-230.0973816,0.000179,2]
[401408323,1768188654221,-1777.0,0.000179,2]
[401408324,1768188654231,-1073.4,0.00017904,2]
[401408325,1768188654240,-350.68764993,0.00017909,2]
[401408326,1768188654250,-2109.39679,0.0001791,2]
[401408327,1768188654260,-350.68764993,0.00017927,2]
[401408328,1768188654270,-350.68764993,0.00017945,2]
[401408329,1768188654280,-350.68764993,0.00017964,2]
[401408330,1768188654290,-500.0,0.00017972,2]
[401408331,1768188654300,-381.34584895,0.00017973,2]
[401408332,1768188654310,-502.23302881,0.00017973,2]
[401408333,1768188654319,-644.05438872,0.00017973,2]
[401408334,1768188654328,-501.47661499,0.00017973,2]
[401408335,1768188654338,-500.0,0.00017973,2]
[401408336,1768188654347,-500.55153068,0.00017973,2]
[401408337,1768188654356,-503.67264874,0.00017973,2]
[401408338,1768188654365,-515.69548792,0.00017973,2]
[401408339,1768188654374,-501.12911319,0.00017973,2]
[401408340,1768188654384,-501.10571804,0.00017973,2]
[401408341,1768188654394,-501.38258594,0.00017973,2]
[401408342,1768188654402,-498.39272947,0.00017973,2]
[401408343,1768188654411,-500.0,0.00017973,2]
[401408344,1768188654421,-500.0,0.00017973,2]
[401408345,1768188654431,-500.0,0.00017973,2]
[401408346,1768188654440,-502.86808452,0.00017973,2]
[401408347,1768188654449,-500.0,0.00017973,2]
[401408348,1768188654459,-153.49935164,0.00017973,2]
[401408349,1768188654468,-506.0,0.0001798,2]
[401408350,1768188654477,-1267.0,0.0001798,2]
[401408351,1768188654487,-914.0,0.0001798,2]
[401408352,1768188654497,-1201.0,0.0001798,2]
[401408353,1768188654506,-151.0,0.0001798,2]
[401408354,1768188654516,-151.0,0.0001798,2]
[401408355,1768188654525,-211.980273,0.0001798,2]
[401408356,1768188654534,-151.0,0.0001798,2]
[401408357,1768188654543,-178.723506,0.0001798,2]
[401408358,1768188654552,-151.0,0.0001798,2]
[401408359,1768188654562,-777.804847,0.0001798,2]
[401408360,1768188654572,-404.421894,0.0001798,2]
[401408361,1768188654582,-210.207373,0.0001798,2]
[401408362,1768188654591,-404.421894,0.0001798,2]
[401408363,1768188654601,-777.804847,0.0001798,2]
[401408364,1768188654610,-151.0,0.0001798,2]
[401408365,1768188654619,-404.421894,0.0001798,2]
[401408366,1768188654628,-777.804847,0.0001798,2]
[401408367,1768188654638,-151.0,0.0001798,2]
[401408368,1768188654647,-151.0,0.0001798,2]
[401408369,1768188654656,-1088.696282,0.0001798,2]
[401408370,1768188654666,-404.421894,0.0001798,2]
[401408371,1768188654675,-777.804847,0.0001798,2]
[401408372,1768188654687,-151.0,0.0001798,2]
[401408373,1768188654697,-866.607694,0.0001798,2]
[401408374,1768188654709,-1088.696282,0.0001798,2]
[401408375,1768188654719,-210.611627,0.0001798,2]
[401408376,1768188654731,-866.607694,0.0001798,2]
[401408377,1768188654742,-1088.696282,0.0001798,2]
[401408378,1768188654753,-210.611627,0.0001798,2]
[401408379,1768188654765,-866.607694,0.0001798,2]
[401408380,1768188654776,-1088.696282,0.0001798,2]
[401408381,1768188654786,-210.611627,0.0001798,2]
[401408382,1768188654796,-151.0,0.0001798,2]
[401408383,1768188654806,-866.607694,0.0001798,2]
[401408384,1768188654816,-210.611627,0.0001798,2]
[401408385,1768188654827,-181.544542,0.0001798,2]
[401408386,1768188654837,-236.318865,0.0001798,2]
[401408387,1768188654847,-151.0,0.0001798,2]
[401408388,1768188654858,-151.0,0.0001798,2]
[401408389,1768188654868,-394.351111,0.0001798,2]
[401408390,1768188654879,-394.351111,0.0001798,2]
[401408391,1768188654889,-394.351111,0.0001798,2]
[401408392,1768188654901,-394.351111,0.0001798,2]
[401408393,1768188654915,-273.244977,0.0001798,2]
[401408394,1768188654926,-883.673582,0.0001798,2]
[401408395,1768188654937,-883.673582,0.0001798,2]
[401408396,1768188654948,-883.673582,0.0001798,2]
[401408397,1768188654958,-876.570737,0.0001798,2]
[401408398,1768188654970,-883.673582,0.0001798,2]
[401408399,1768188654982,-876.570737,0.0001798,2]
[401408400,1768188654992,-876.570737,0.0001798,2]
[401408401,1768188655003,-585.678073,0.0001798,2]
[401408402,1768188655014,-876.570737,0.0001798,2]
[401408403,1768188655025,-585.678073,0.0001798,2]
[401408404,1768188655034,-585.678073,0.0001798,2]
[401408405,1768188655044,-585.678073,0.0001798,2]
[401408406,1768188655054,-151.0,0.0001798,2]
[401408407,1768188655064,-151.0,0.0001798,2]
[401408408,1768188655074,-151.0,0.0001798,2]
[401408409,1768188655084,-151.0,0.0001798,2]
[401408410,1768188655094,-151.0,0.0001798,2]
[401408411,1768188655104,-1276.752068,0.0001798,2]
[401408412,1768188655114,-1276.752068,0.0001798,2]
[401408413,1768188655123,-151.0,0.0001798,2]
[401408414,1768188655133,-1276.752068,0.0001798,2]
[401408415,1768188655143,-151.0,0.0001798,2]
[401408416,1768188655153,-1276.752068,0.0001798,2]
[401408417,1768188655164,-895.101573,0.0001798,2]
[401408418,1768188655174,-895.101573,0.0001798,2]
[401408419,1768188655183,-895.101573,0.0001798,2]
[401408420,1768188655193,-895.101573,0.0001798,2]
[401408421,1768188655203,-151.0,0.0001798,2]
[401408422,1768188655213,-151.0,0.0001798,2]
[401408423,1768188655222,-187.206296,0.0001798,2]
[401408424,1768188655231,-151.0,0.0001798,2]
[401408425,1768188655241,-162.966682,0.0001798,2]
[401408426,1768188655251,-151.0,0.0001798,2]
[401408427,1768188655260,-1767.548746,0.0001798,2]
[401408428,1768188655270,-501.106021,0.0001798,2]
[401408429,1768188655283,-1767.548746,0.0001798,2]
[401408430,1768188655293,-151.0,0.0001798,2]
[401408431,1768188655303,-402.021243,0.0001798,2]
[401408432,1768188655313,-501.106021,0.0001798,2]
[401408433,1768188655323,-1767.548746,0.0001798,2]
[401408434,1768188655334,-257.783842,0.0001798,2]
[401408435,1768188655344,-402.021243,0.0001798,2]
[401408436,1768188655355,-501.106021,0.0001798,2]
[401408437,1768188655366,-1767.548746,0.0001798,2]
[401408438,1768188655378,-151.0,0.0001798,2]
[401408439,1768188655388,-402.021243,0.0001798,2]
[401408440,1768188655399,-297.170586,0.0001798,2]
[401408441,1768188655409,-501.106021,0.0001798,2]
[401408442,1768188655420,-297.170586,0.0001798,2]
[401408443,1768188655430,-151.0,0.0001798,2]
[401408444,1768188655440,-402.021243,0.0001798,2]
[401408445,1768188655450,-151.0,0.0001798,2]
[401408446,1768188655461,-464.411102,0.0001798,2]
[401408447,1768188655472,-878.078272,0.0001798,2]
[401408448,1768188655486,-297.170586,0.0001798,2]
[401408449,1768188655497,-151.0,0.0001798,2]
[401408450,1768188655508,-464.411102,0.0001798,2]
[401408451,1768188655519,-878.078272,0.0001798,2]
[401408452,1768188655530,-297.170586,0.0001798,2]
[401408453,1768188655539,-878.078272,0.0001798,2]
[401408454,1768188655550,-464.411102,0.0001798,2]
[401408455,1768188655561,-151.0,0.0001798,2]
[401408456,1768188655572,-878.078272,0.0001798,2]
[401408457,1768188655584,-464.411102,0.0001798,2]
[401408458,1768188655595,-182.853172,0.0001798,2]
[401408459,1768188655605,-208.281146,0.0001798,2]
[401408460,1768188655616,-157.637598,0.0001798,2]
[401408461,1768188655626,-208.281146,0.0001798,2]
[401408462,1768188655635,-157.637598,0.0001798,2]
[401408463,1768188655644,-1680.772685,0.0001798,2]
[401408464,1768188655653,-208.281146,0.0001798,2]
[401408465,1768188655666,-157.637598,0.0001798,2]
[401408466,1768188655675,-1680.772685,0.0001798,2]
[401408467,1768188655688,-208.281146,0.0001798,2]
[401408468,1768188655698,-157.637598,0.0001798,2]
[401408469,1768188656108,-1680.772685,0.0001798,2]
[401408470,1768188656119,-1680.772685,0.0001798,2]
[401408471,1768188656128,-151.0,0.0001798,2]
[401408472,1768188656138,-897.996354,0.0001798,2]
[401408473,1768188656148,-151.0,0.0001798,2]
[401408474,1768188656157,-897.996354,0.0001798,2]
[401408475,1768188656167,-274.564263,0.0001798,2]
[401408476,1768188656176,-897.996354,0.0001798,2]
[401408477,1768188656186,-897.996354,0.0001798,2]
[401408478,1768188656199,-2277.167351,0.0001798,2]
[401408479,1768188656208,-2139.417501,0.0001798,2]
[401408480,1768188656218,-2277.167351,0.0001798,2]
[401408481,1768188656227,-2139.417501,0.0001798,2]
[401408482,1768188656236,-2277.167351,0.0001798,2]
[401408483,1768188656246,-2139.417501,0.0001798,2]
[401408484,1768188656256,-2277.167351,0.0001798,2]
[401408485,1768188656266,-2139.417501,0.0001798,2]
[401408486,1768188656276,-151.0,0.0001798,2]
[401408487,1768188656286,-265.669936,0.0001798,2]
[401408488,1768188656295,-151.0,0.0001798,2]
[401408489,1768188656304,-151.0,0.0001798,2]
[401408490,1768188656314,-273.411244,0.0001798,2]
[401408491,1768188656324,-291.883143,0.0001798,2]
[401408492,1768188656336,-151.0,0.0001798,2]
[401408493,1768188656347,-291.883143,0.0001798,2]
[401408494,1768188656356,-151.0,0.0001798,2]
[401408495,1768188656365,-1405.0,0.0001798,2]
[401408496,1768188656374,-291.883143,0.0001798,2]
[401408497,1768188656384,-151.0,0.0001798,2]
[401408498,1768188656393,-291.883143,0.0001798,2]
[401408499,1768188656403,-4821.0,0.0001798,2]
[401408500,1768188656412,-1888.793769,0.0001798,2]
[401408501,1768188656422,-1888.793769,0.0001798,2]
[401408502,1768188656431,-1888.793769,0.0001798,2]
[401408503,1768188656440,-1888.793769,0.0001798,2]
[401408504,1768188656450,-247.183117,0.0001798,2]
[401408505,1768188656460,-350.68764993,0.00017982,2]
[401408506,1768188656470,-152.92662848,0.00017982,2]
[401408507,1768188656479,-500.0,0.00017982,2]
[401408508,1768188656493,-1856.57725944,0.0001799,2]
[401408509,1768188656503,-1047.04298225,0.0001799,2]
[401408510,1768188656513,-1110.78417923,0.00017999,5]
[401408511,1768188656523,-1110.78417922,0.00017999,5]
[401408512,1768188656532,-1110.78417922,0.00017999,5]
[401408513,1768188656542,-1110.78417922,0.00017999,5]
[401408514,1768188656552,-1110.78417922,0.00017999,5]
[401408515,1768188656562,-1110.78417922,0.00017999,5]
[401408516,1768188656572,-1110.78417922,0.00017999,5]
[401408517,1768188656582,-1110.78417922,0.00017999,5]
[401408518,1768188656592,-300.0,0.00017999,2]
[401408519,1768188656602,-670.95106238,0.00017999,2]
[401408520,1768188656612,-500.0,0.00017999,2]
[401408521,1768188656622,-500.0,0.00017999,2]
[401408522,1768188656633,-500.0,0.00017999,2]
[401408523,1768188656644,-500.0,0.00017999,2]
[401408524,1768188656654,-456.07319796,0.00017999,2]
[401408525,1768188656664,-300.0,0.00017999,2]
[401408526,1768188656676,-300.0,0.00017999,2]
[401408527,1768188656688,-510.98377513,0.00017999,2]
[401408528,1768188656699,-300.0,0.00017999,2]
[401408529,1768188656709,-300.0,0.00017999,2]
[401408530,1768188656719,-666.0,0.00017999,2]
[401408531,1768188656730,-14302.37222132,0.00017999,2]
[401408532,1768188656740,-300.0,0.00017999,2]
[401408533,1768188656752,-666.0,0.00017999,2]
[401408534,1768188656764,-156.71525667,0.00018,2]
[401408535,1768188656773,-155.99258279,0.00018,2]
[401408536,1768188656783,-154.38953807,0.00018,2]
[401408537,1768188656795,-155.07098725,0.00018,2]
[401408538,1768188656806,-350.68764993,0.00018,2]
[401408539,1768188656817,-151.66154832,0.00018,2]
[401408540,1768188656831,-152.37123583,0.00018,2]
[401408541,1768188656842,-151.45444701,0.00018,2]
[401408542,1768188656853,-155.70825827,0.00018,2]
[401408543,1768188656864,-152.34445976,0.00018,2]
[401408544,1768188656875,-248.59699216,0.00018,2]
[401408545,1768188656885,-154.70586823,0.00018,2]
[401408546,1768188656896,-2409458.34899857,0.00018,2]
[401408547,1768188656906,-276537.06125926,0.00018,2]
[401408548,1768188657593,-1022.52820613,0.00018,2]
[401408549,1768188657605,-1605.986275,0.00018,2]
[401408550,1768188658005,-1.7e-07,0.00018,2]
[401408551,1768188658027,-974.77180495,0.0001773,2]
[401408553,1768188658452,-881.0,0.00017041,2]
[401408554,1768188658464,-441.99,0.00017041,2]
[401408555,1768188658475,-170.66,0.00017178,2]
[401408556,1768188658485,-10845.72287319,0.00017381,2]
[401408557,1768188658495,-781.20863405,0.0001773,2]
[401408558,1768188658506,-310.766084,0.0001773,2]
[401408559,1768188658516,-2951.610547,0.0001773,2]
[401408560,1768188658527,-200.519287,0.0001773,2]
[401408561,1768188658537,-310.766084,0.0001773,2]
[401408562,1768188658550,-4897.69413055,0.00018,2]
[401408563,1768188658570,-6587.776033,0.00018,2]